{"text_format":"3","workbook":"xlsx","n_sheets":6,"sheets":["PERIOOD","AINEPUNKTID","EELARVE","KUU NETOVÄLJAMINEKUD","SEMESTRI VÄLJAMINEKUD","RAAMATUD"],"not_rendered":{"defined_names":21},"read":"whole","date_system":"1900"}

{"sheet":"PERIOOD","index":0,"n_rows":29,"n_cols":9,"rows_kept":29,"merged":[[2,3,2,4]]}
[null,"MINU TUNNIPLAAN"]
[null,"SÜGISSEMESTER"]
[null,null,"ALGUSKELLAAEG","AJAVAHEMIK",null,"AASTA"]
[null,null,"09:00:00",60,"(minutites)"]
[null,"KELLAAEG ","ESMASPÄEV","TEISIPÄEV","KOLMAPÄEV","NELJAPÄEV","REEDE","LAUPÄEV","PÜHAPÄEV"]
[null,{"$f":"Algusaeg+TIME(0,(ROW(A1)-1)*Ajavahemik,0)","v":"09:00:00"},"Hommikusöök","Hommikusöök","Hommikusöök","Hommikusöök","Hommikusöök"]
[null,"10:00:00","Äri: loeng, hoone B, ruum 256"]
[null,"11:00:00",{"$nulls":3},"Füüsika: labor, \nhoone J, ruum 309"]
[null,"12:00:00"]
[null,"13:00:00"]
[null,"14:00:00"]
[null,"15:00:00"]
[null,"16:00:00"]
[null,"17:00:00"]
[null,"18:00:00"]
[null,"19:00:00"]
[null,"20:00:00"]
[null,"21:00:00"]
[null,"22:00:00"]
[null,"23:00:00"]
[null,1]
[null,1.0416666666666665]
[null,1.0833333333333335]
[null,1.125]
[null,1.1666666666666665]
[null,1.2083333333333335]
[null,1.25]
[null,1.2916666666666665]
[null,1.3333333333333335]

{"sheet":"AINEPUNKTID","index":1,"n_rows":17,"n_cols":8,"rows_kept":17}
[null,"ÜLIÕPILASE"]
[null,"AINEPUNKTIDE PLAANUR"]
[null,"Kraad",{"$f":"Aasta","v":"AASTA"}]
[null,"EDENEMINE",null,"EDENEMINE"]
[null,{"$f":"AVERAGE(Kursused[HINNE])","v":3.5},{"$f":"IFERROR(TEXT(AVERAGEIF(Kursused[LÕPETATUD],\"Jah\",Kursused[HINNE]),\"0,00\"),\"0,00\")&\" Praegune keskmine hinne\"","v":"3,50 Praegune keskmine hinne"},{"$f":"COUNTIF(Kursused[LÕPETATUD],\"Jah\")/COUNTA(Kursused[KURSUSE NIMI])","v":0.6666666666666666},{"$f":"TEXT(COUNTIF(Kursused[LÕPETATUD],\"Jah\")/COUNTA(Kursused[KURSUSE NIMI]),\"0%\")&\" lõpule viidud\"","v":"67% lõpule viidud"}]
[null,"Märkus. Järgnev ainepunktide kokkuvõte täidetakse automaatselt allolevas tabelis Õppemoodulid toodud kirjetega"]
[null,"NÕUE","AINEPUNKTE KOKKU","TEENITUD","NÕUTAV"]
[null,"Peaaine",{"$f":"IF(SUMIF(Kursused[NÕUE],AINEPUNKTID!$B8,Kursused[AINEPUNKTID])=0,\"0\",SUMIF(Kursused[NÕUE],AINEPUNKTID!$B8,Kursused[AINEPUNKTID]))","v":4},{"$f":"SUMIFS(Kursused[AINEPUNKTID],Kursused[NÕUE],AINEPUNKTID!$B8,Kursused[LÕPETATUD],\"Jah\")","v":4},{"$f":"SUMIF(Kursused[NÕUE],AINEPUNKTID!$B8,Kursused[AINEPUNKTID])-SUMIFS(Kursused[AINEPUNKTID],Kursused[NÕUE],AINEPUNKTID!$B8,Kursused[LÕPETATUD],\"Jah\")","v":0}]
[null,"Kõrvalaine",{"$f":"IF(SUMIF(Kursused[NÕUE],AINEPUNKTID!$B9,Kursused[AINEPUNKTID])=0,\"0\",SUMIF(Kursused[NÕUE],AINEPUNKTID!$B9,Kursused[AINEPUNKTID]))","v":3},{"$f":"SUMIFS(Kursused[AINEPUNKTID],Kursused[NÕUE],AINEPUNKTID!$B9,Kursused[LÕPETATUD],\"Jah\")","v":0},{"$f":"SUMIF(Kursused[NÕUE],AINEPUNKTID!$B9,Kursused[AINEPUNKTID])-SUMIFS(Kursused[AINEPUNKTID],Kursused[NÕUE],AINEPUNKTID!$B9,Kursused[LÕPETATUD],\"Jah\")","v":3}]
[null,"Valikaine",{"$f":"IF(SUMIF(Kursused[NÕUE],AINEPUNKTID!$B10,Kursused[AINEPUNKTID])=0,\"0\",SUMIF(Kursused[NÕUE],AINEPUNKTID!$B10,Kursused[AINEPUNKTID]))","v":2},{"$f":"SUMIFS(Kursused[AINEPUNKTID],Kursused[NÕUE],AINEPUNKTID!$B10,Kursused[LÕPETATUD],\"Jah\")","v":2},{"$f":"SUMIF(Kursused[NÕUE],AINEPUNKTID!$B10,Kursused[AINEPUNKTID])-SUMIFS(Kursused[AINEPUNKTID],Kursused[NÕUE],AINEPUNKTID!$B10,Kursused[LÕPETATUD],\"Jah\")","v":0}]
[null,"Üldõpe",{"$f":"IF(SUMIF(Kursused[NÕUE],AINEPUNKTID!$B11,Kursused[AINEPUNKTID])=0,\"0\",SUMIF(Kursused[NÕUE],AINEPUNKTID!$B11,Kursused[AINEPUNKTID]))","v":"0"},{"$f":"SUMIFS(Kursused[AINEPUNKTID],Kursused[NÕUE],AINEPUNKTID!$B11,Kursused[LÕPETATUD],\"Jah\")","v":0},{"$f":"SUMIF(Kursused[NÕUE],AINEPUNKTID!$B11,Kursused[AINEPUNKTID])-SUMIFS(Kursused[AINEPUNKTID],Kursused[NÕUE],AINEPUNKTID!$B11,Kursused[LÕPETATUD],\"Jah\")","v":0}]
[null,"Kokku",{"$f":"SUBTOTAL(109,AINEPUNKTID!$C$8:$C$11)","v":9},{"$f":"SUBTOTAL(109,AINEPUNKTID!$D$8:$D$11)","v":6},{"$f":"SUBTOTAL(109,AINEPUNKTID!$E$8:$E$11)","v":3}]
[null,"Kursused"]
[null,"KURSUSE NIMI","KURSUSE nr","NÕUE","AINEPUNKTID","LÕPETATUD","HINNE","SEMESTER"]
[null,"Kursus 1","Number","Peaaine",4,"Jah",{"v":4,"d":"4.0"},"1. semester"]
[null,"Kursus 2","Number","Kõrvalaine",3,"Ei",null,"1. semester"]
[null,"Kursus 3","Number","Valikaine",2,"Jah",{"v":3,"d":"3.0"},"1. semester"]

{"sheet":"EELARVE","index":2,"n_rows":15,"n_cols":4,"rows_kept":15}
[null,{"$f":"Kõrgkool","v":"ÜLIÕPILASE"}]
[null,"EELARVE JÄLGIMINE"]
[null,"Minu eelarve",{"$f":"Aasta","v":"AASTA"}]
[null,"KULUTATUD SISSETULEKU PROTSENT"]
[null,{"$f":"KUU_NETOVÄLJAMINEKUD/KUU_NETOSISSETULEKUD","v":{"v":0.7454545454545455,"d":"1 €"}}]
[null,{"$f":"B5","v":0.7454545454545455}]
[null,"KUU NETOSISSETULEK","KUU NETOVÄLJAMINEKUD","SALDO"]
[null,{"$f":"C10","v":{"v":2750,"d":"2,750 €"}},{"$f":"'KUU NETOVÄLJAMINEKUD'!C4+'SEMESTRI VÄLJAMINEKUD'!D4","v":{"v":2050,"d":"2,050 €"}},{"$f":"KUU_NETOSISSETULEKUD-KUU_NETOVÄLJAMINEKUD","v":{"v":700,"d":"700 €"}}]
[null,"Kuude arv semestris",4]
[null,"KUUSISSETULEK",{"$f":"SUM(Kuusissetulek[SUMMA])","v":{"v":2750,"d":"2,750 €"}}]
[null,"ÜKSUS","SUMMA"]
[null,"Püsisissetulek",{"v":1500,"d":"1,500 €"}]
[null,"Finantstoetus",{"v":500,"d":"500 €"}]
[null,"Laenud",{"v":500,"d":"500 €"}]
[null,"Muu sissetulek",{"v":250,"d":"250 €"}]

{"sheet":"KUU NETOVÄLJAMINEKUD","index":3,"n_rows":15,"n_cols":3,"rows_kept":15}
[null,{"$f":"Kõrgkool","v":"ÜLIÕPILASE"}]
[null,"EELARVE JÄLGIMINE"]
[null,"Kuuväljaminekud",{"$f":"Aasta","v":"AASTA"}]
[null,"KUUVÄLJAMINEKUD",{"$f":"SUM(Kuuväljaminekud[SUMMA])","v":{"v":1675,"d":"1,675 €"}}]
[null,"ÜKSUS","SUMMA"]
[null,"Üür",{"v":300,"d":"300 €"}]
[null,"Kommunaalid",{"v":50,"d":"50 €"}]
[null,"Mobiiltelefon",{"v":75,"d":"75 €"}]
[null,"Toit",{"v":250,"d":"250 €"}]
[null,"Auto",{"v":50,"d":"50 €"}]
[null,"Õppelaenud",{"v":500,"d":"500 €"}]
[null,"Krediitkaardid",{"v":275,"d":"275 €"}]
[null,"Kindlustus",{"v":125,"d":"125 €"}]
[null,"Meelelahutus",{"v":50,"d":"50 €"}]
[null,"Muu",{"v":0,"d":"0 €"}]

{"sheet":"SEMESTRI VÄLJAMINEKUD","index":4,"n_rows":11,"n_cols":4,"rows_kept":11}
[null,{"$f":"Kõrgkool","v":"ÜLIÕPILASE"}]
[null,"EELARVE JÄLGIMINE"]
[null,"Semestri väljaminekud",{"$f":"Aasta","v":"AASTA"}]
[null,"SEMESTRI VÄLJAMINEKUD (kokku / kuu kohta)",{"$f":"SUM(SemestriVäljaminekud[SUMMA])","v":{"v":1500,"d":"1,500 €"}},{"$f":"SUM(SemestriVäljaminekud[KUU KOHTA])","v":{"v":375,"d":"375 €"}}]
[null,"ÜKSUS","SUMMA","KUU KOHTA"]
[null,"Õppemaks",{"v":750,"d":"750 €"},{"$f":"SemestriVäljaminekud[[#This Row],[SUMMA]]/Semestri_kuude_arv","v":{"v":187.5,"d":"188 €"}}]
[null,"Laboritasud",{"v":250,"d":"250 €"},{"$f":"SemestriVäljaminekud[[#This Row],[SUMMA]]/Semestri_kuude_arv","v":{"v":62.5,"d":"63 €"}}]
[null,"Raamatud",{"v":500,"d":"500 €"},{"$f":"SemestriVäljaminekud[[#This Row],[SUMMA]]/Semestri_kuude_arv","v":{"v":125,"d":"125 €"}}]
[null,"Tagatised",{"v":0,"d":"0 €"},{"$f":"SemestriVäljaminekud[[#This Row],[SUMMA]]/Semestri_kuude_arv","v":{"v":0,"d":"0 €"}}]
[null,"Transport",{"v":0,"d":"0 €"},{"$f":"SemestriVäljaminekud[[#This Row],[SUMMA]]/Semestri_kuude_arv","v":{"v":0,"d":"0 €"}}]
[null,"Muud tasud",{"v":0,"d":"0 €"},{"$f":"SemestriVäljaminekud[[#This Row],[SUMMA]]/Semestri_kuude_arv","v":{"v":0,"d":"0 €"}}]

{"sheet":"RAAMATUD","index":5,"n_rows":7,"n_cols":7,"rows_kept":7}
[null,{"$f":"Kõrgkool","v":"ÜLIÕPILASE"}]
[null,"RAAMATUTE JÄLGIMINE"]
[null,"Raamatute nimekiri"]
[null,"PEALKIRI","AUTOR","KURSUS","KUST OSTA?","ISBN","MÄRKMED"]
[null,"Raamatu pealkiri","Autor","Kursus","Asukoht","Number"]
[null,"Raamatu pealkiri","Autor","Kursus","Asukoht","Number"]
[null,"Raamatu pealkiri","Autor","Kursus","Asukoht","Number"]